[Event "Titled Tuesday Blitz August 08 Early 2023"]
[White "Khan, Taffin"]
[Black "Mindhunter08"]
[WhiteFideId "19700024"]
[WhiteElo "2207"]
[BlackElo "2473"]
[Result "0-1"]
[Round "3"]
[TimeControl "180+1"]
[Date "2023.08.08"]
[WhiteClock "0:00:00"]
[BlackClock "0:00:03"]
[Board "236"]

1. d4 {[%clk 0:03:00]}  d5 {[%clk 0:02:59]} 2. Nf3 {[%clk 0:03:00]}  Nf6 {[%clk 0:03:00]} 3. g3 {[%clk 0:03:01]}  e6 {[%clk 0:02:48]} 4. Bg2 {[%clk 0:03:00]}  b5 {[%clk 0:02:48]} 5. O-O {[%clk 0:02:46]}  Bb7 {[%clk 0:02:47]} 6. a4 {[%clk 0:02:35]}  b4 {[%clk 0:02:46]} 7. Nbd2 {[%clk 0:02:32]}  Nbd7 {[%clk 0:02:44]} 8. c4 {[%clk 0:02:32]}  bxc3 {[%clk 0:02:42]} 9. bxc3 {[%clk 0:02:32]}  c5 {[%clk 0:02:43]} 10. c4 {[%clk 0:02:04]}  cxd4 {[%clk 0:02:33]} 11. Nxd4 {[%clk 0:02:01]}  Bc5 {[%clk 0:02:33]} 12. N4b3 {[%clk 0:02:00]}  Bb6 {[%clk 0:02:31]} 13. a5 {[%clk 0:01:59]}  Bc7 {[%clk 0:02:31]} 14. Ba3 {[%clk 0:01:51]}  Rb8 {[%clk 0:02:26]} 15. cxd5 {[%clk 0:01:37]}  Bxd5 {[%clk 0:02:24]} 16. Bxd5 {[%clk 0:01:35]}  Nxd5 {[%clk 0:02:25]} 17. e4 {[%clk 0:01:28]}  Nc3 {[%clk 0:02:22]} 18. Qc2 {[%clk 0:01:25]}  Nb5 {[%clk 0:02:19]} 19. Bb4 {[%clk 0:01:10]}  Ne5 {[%clk 0:02:04]} 20. Kg2 {[%clk 0:01:03]}  Qd3 {[%clk 0:01:51]} 21. Qxd3 {[%clk 0:00:44]}  Nxd3 {[%clk 0:01:52]} 22. Bc5 {[%clk 0:00:43]}  Be5 {[%clk 0:01:33]} 23. Rab1 {[%clk 0:00:30]}  Nc3 {[%clk 0:01:20]} 24. Ra1 {[%clk 0:00:22]}  Nxe4 {[%clk 0:00:33]} 25. Nxe4 {[%clk 0:00:22]}  Rxb3 {[%clk 0:00:29]} 26. Nd6+ {[%clk 0:00:20]}  Ke7 {[%clk 0:00:16]} 27. Rab1 {[%clk 0:00:20]}  Rhb8 {[%clk 0:00:06]} 28. Rxb3 {[%clk 0:00:19]}  Rxb3 {[%clk 0:00:06]} 29. Nc4+ {[%clk 0:00:17]}  Nxc5 {[%clk 0:00:05]} 30. Nxe5 {[%clk 0:00:17]}  Rb5 {[%clk 0:00:04]} 31. Nc6+ {[%clk 0:00:14]}  Kd6 {[%clk 0:00:04]} 32. Nxa7 {[%clk 0:00:13]}  Rxa5 {[%clk 0:00:05]} 33. Nc8+ {[%clk 0:00:11]}  Kc7 {[%clk 0:00:05]} 34. Ne7 {[%clk 0:00:08]}  Kd7 {[%clk 0:00:05]} 35. Ng8 {[%clk 0:00:06]}  Ra8 {[%clk 0:00:03]} 36. Rc1 {[%clk 0:00:06]}  Ne4 {[%clk 0:00:02]} 37. Rd1+ {[%clk 0:00:00]}  Nd6 {[%clk 0:00:03]} 0-1


[Site "https://www.chess.com"]

[Event "Titled Tuesday Blitz August 08 Early 2023"]
[White "Petersson, Kjell"]
[Black "MateoReyes"]
[WhiteFideId "1705148"]
[WhiteElo "2198"]
[BlackElo "2471"]
[Result "1/2-1/2"]
[Round "3"]
[TimeControl "180+1"]
[Date "2023.08.08"]
[WhiteClock "0:00:05"]
[BlackClock "0:00:33"]
[Board "237"]

1. d4 {[%clk 0:02:59]}  Nf6 {[%clk 0:02:58]} 2. Bf4 {[%clk 0:02:59]}  d5 {[%clk 0:02:56]} 3. e3 {[%clk 0:02:59]}  c5 {[%clk 0:02:56]} 4. c3 {[%clk 0:02:57]}  Nc6 {[%clk 0:02:56]} 5. Nd2 {[%clk 0:02:57]}  cxd4 {[%clk 0:02:55]} 6. exd4 {[%clk 0:02:56]}  Bf5 {[%clk 0:02:55]} 7. Qb3 {[%clk 0:02:50]}  Qb6 {[%clk 0:02:53]} 8. Ngf3 {[%clk 0:02:46]}  e6 {[%clk 0:02:53]} 9. Nh4 {[%clk 0:02:44]}  Bg6 {[%clk 0:02:49]} 10. Nxg6 {[%clk 0:02:43]}  hxg6 {[%clk 0:02:48]} 11. Bd3 {[%clk 0:02:40]}  Be7 {[%clk 0:02:47]} 12. h3 {[%clk 0:02:37]}  O-O {[%clk 0:02:38]} 13. O-O {[%clk 0:02:36]}  Rfc8 {[%clk 0:02:34]} 14. Rfe1 {[%clk 0:02:26]}  Na5 {[%clk 0:02:32]} 15. Qc2 {[%clk 0:02:17]}  Bd6 {[%clk 0:02:31]} 16. Bxd6 {[%clk 0:02:07]}  Qxd6 {[%clk 0:02:30]} 17. Nf3 {[%clk 0:02:00]}  Nc6 {[%clk 0:02:27]} 18. Ne5 {[%clk 0:01:59]}  Nd7 {[%clk 0:02:25]} 19. Nxd7 {[%clk 0:01:48]}  Qxd7 {[%clk 0:02:25]} 20. Qd2 {[%clk 0:01:43]}  a6 {[%clk 0:02:21]} 21. a4 {[%clk 0:01:39]}  Na5 {[%clk 0:02:18]} 22. Qf4 {[%clk 0:01:35]}  Nc4 {[%clk 0:02:15]} 23. Re2 {[%clk 0:01:35]}  Qd6 {[%clk 0:02:13]} 24. Qxd6 {[%clk 0:01:18]}  Nxd6 {[%clk 0:02:12]} 25. f4 {[%clk 0:01:07]}  b5 {[%clk 0:02:09]} 26. axb5 {[%clk 0:01:06]}  axb5 {[%clk 0:02:09]} 27. Ree1 {[%clk 0:01:05]}  Rcb8 {[%clk 0:02:00]} 28. b4 {[%clk 0:00:50]}  Rc8 {[%clk 0:01:57]} 29. Rxa8 {[%clk 0:00:43]}  Rxa8 {[%clk 0:01:57]} 30. Re2 {[%clk 0:00:40]}  Ra3 {[%clk 0:01:54]} 31. Rc2 {[%clk 0:00:40]}  f5 {[%clk 0:01:48]} 32. Kf2 {[%clk 0:00:40]}  Kf7 {[%clk 0:01:48]} 33. g4 {[%clk 0:00:40]}  Kf6 {[%clk 0:01:46]} 34. Kf3 {[%clk 0:00:37]}  g5 {[%clk 0:01:45]} 35. fxg5+ {[%clk 0:00:33]}  Kxg5 {[%clk 0:01:44]} 36. gxf5 {[%clk 0:00:33]}  exf5 {[%clk 0:01:42]} 37. Kg3 {[%clk 0:00:32]}  Kf6 {[%clk 0:01:39]} 38. h4 {[%clk 0:00:29]}  Ra1 {[%clk 0:01:36]} 39. Kg2 {[%clk 0:00:22]}  Rd1 {[%clk 0:01:35]} 40. Be2 {[%clk 0:00:21]}  Re1 {[%clk 0:01:31]} 41. Bf3 {[%clk 0:00:22]}  Ke6 {[%clk 0:01:23]} 42. Re2+ {[%clk 0:00:23]}  Rxe2+ {[%clk 0:01:22]} 43. Bxe2 {[%clk 0:00:23]}  f4 {[%clk 0:01:17]} 44. Kf3 {[%clk 0:00:23]}  Kf5 {[%clk 0:01:16]} 45. Bd3+ {[%clk 0:00:24]}  Ne4 {[%clk 0:01:16]} 46. Bxb5 {[%clk 0:00:23]}  Nxc3 {[%clk 0:01:15]} 47. Bd7+ {[%clk 0:00:23]}  Kf6 {[%clk 0:01:13]} 48. Kxf4 {[%clk 0:00:24]}  Ne2+ {[%clk 0:01:09]} 49. Ke3 {[%clk 0:00:23]}  Nc3 {[%clk 0:01:07]} 50. b5 {[%clk 0:00:24]}  Na4 {[%clk 0:01:07]} 51. b6 {[%clk 0:00:25]}  Nxb6 {[%clk 0:01:07]} 52. Bc6 {[%clk 0:00:25]}  Ke6 {[%clk 0:01:06]} 53. Kf4 {[%clk 0:00:25]}  Kd6 {[%clk 0:01:04]} 54. Bb7 {[%clk 0:00:22]}  Ke6 {[%clk 0:01:01]} 55. Kg5 {[%clk 0:00:19]}  Kf7 {[%clk 0:00:58]} 56. h5 {[%clk 0:00:18]}  Ke7 {[%clk 0:00:54]} 57. Kg6 {[%clk 0:00:18]}  Kf8 {[%clk 0:00:54]} 58. Bc6 {[%clk 0:00:18]}  Nc8 {[%clk 0:00:52]} 59. Bd7 {[%clk 0:00:16]}  Ne7+ {[%clk 0:00:52]} 60. Kg5 {[%clk 0:00:16]}  Kf7 {[%clk 0:00:52]} 61. Bb5 {[%clk 0:00:15]}  Ng8 {[%clk 0:00:51]} 62. Bc6 {[%clk 0:00:14]}  Nf6 {[%clk 0:00:51]} 63. Bb7 {[%clk 0:00:14]}  Ke7 {[%clk 0:00:49]} 64. Kg6 {[%clk 0:00:13]}  Kd6 {[%clk 0:00:46]} 65. h6 {[%clk 0:00:09]}  Ke7 {[%clk 0:00:43]} 66. hxg7 {[%clk 0:00:06]}  Ng8 {[%clk 0:00:40]} 67. Bxd5 {[%clk 0:00:06]}  Nf6 {[%clk 0:00:40]} 68. Bc4 {[%clk 0:00:06]}  Ne4 {[%clk 0:00:34]} 69. g8=Q {[%clk 0:00:05]}  Kd6 {[%clk 0:00:34]} 70. Qe6+ {[%clk 0:00:05]}  Kc7 {[%clk 0:00:33]} 71. Qxe4 {[%clk 0:00:05]}  Kd8 {[%clk 0:00:34]} 72. Qe6 {[%clk 0:00:06]}  Kc7 {[%clk 0:00:34]} 73. Bd5 {[%clk 0:00:06]}  Kb8 {[%clk 0:00:33]} 74. Qd7 {[%clk 0:00:05]} 1/2-1/2


[Site "https://www.chess.com"]

[Event "Titled Tuesday Blitz August 08 Early 2023"]
[White "LionKing2367890"]
[Black "a-z30"]
[WhiteElo "2189"]
[BlackElo "2410"]
[Result "1-0"]
[Round "3"]
[TimeControl "180+1"]
[Date "2023.08.08"]
[WhiteClock "0:00:42"]
[BlackClock "0:00:00"]
[Board "240"]

1. e4 {[%clk 0:03:00]}  c5 {[%clk 0:02:59]} 2. Nf3 {[%clk 0:03:00]}  Nc6 {[%clk 0:03:00]} 3. d4 {[%clk 0:03:00]}  cxd4 {[%clk 0:03:00]} 4. Nxd4 {[%clk 0:03:00]}  Nf6 {[%clk 0:03:01]} 5. f3 {[%clk 0:03:00]}  d5 {[%clk 0:02:54]} 6. Nxc6 {[%clk 0:02:57]}  bxc6 {[%clk 0:02:54]} 7. e5 {[%clk 0:02:57]}  Nd7 {[%clk 0:02:47]} 8. f4 {[%clk 0:02:57]}  Nc5 {[%clk 0:02:42]} 9. c4 {[%clk 0:02:54]}  Ba6 {[%clk 0:01:55]} 10. Be3 {[%clk 0:02:36]}  e6 {[%clk 0:01:54]} 11. Nc3 {[%clk 0:02:30]}  Bxc4 {[%clk 0:01:44]} 12. Bxc4 {[%clk 0:02:27]}  dxc4 {[%clk 0:01:44]} 13. O-O {[%clk 0:01:59]}  Qxd1 {[%clk 0:01:35]} 14. Rfxd1 {[%clk 0:01:57]}  Be7 {[%clk 0:01:29]} 15. Rd4 {[%clk 0:01:55]}  O-O {[%clk 0:01:02]} 16. Rxc4 {[%clk 0:01:54]}  Nd3 {[%clk 0:01:02]} 17. Rxc6 {[%clk 0:01:27]}  Nxb2 {[%clk 0:01:01]} 18. Rb1 {[%clk 0:01:27]}  Nd3 {[%clk 0:00:35]} 19. Rc7 {[%clk 0:01:25]}  Bd8 {[%clk 0:00:23]} 20. Rd7 {[%clk 0:01:18]}  Nxf4 {[%clk 0:00:16]} 21. Bxf4 {[%clk 0:01:17]}  Bb6+ {[%clk 0:00:16]} 22. Kf1 {[%clk 0:01:14]}  Rfc8 {[%clk 0:00:14]} 23. Nb5 {[%clk 0:01:08]}  Rc2 {[%clk 0:00:12]} 24. Bg3 {[%clk 0:01:00]}  Rxa2 {[%clk 0:00:11]} 25. Nd6 {[%clk 0:00:57]}  Rf8 {[%clk 0:00:08]} 26. Nc4 {[%clk 0:00:44]}  f6 {[%clk 0:00:08]} 27. Nxb6 {[%clk 0:00:43]}  fxe5+ {[%clk 0:00:07]} 28. Kg1 {[%clk 0:00:42]}  axb6 {[%clk 0:00:00]} 29. Bxe5 {[%clk 0:00:42]} 1-0


[Site "https://www.chess.com"]

[Event "Titled Tuesday Blitz August 08 Early 2023"]
[White "Araujo Filho, Luiz Antonio Coel"]
[Black "Stork, Oliver"]
[WhiteFideId "2130661"]
[BlackFideId "12955728"]
[WhiteElo "2168"]
[BlackElo "2402"]
[Result "1-0"]
[Round "3"]
[TimeControl "180+1"]
[Date "2023.08.08"]
[WhiteClock "0:00:05"]
[BlackClock "0:00:05"]
[Board "243"]

1. d4 {[%clk 0:03:00]}  Nf6 {[%clk 0:02:59]} 2. Nf3 {[%clk 0:03:01]}  d5 {[%clk 0:02:59]} 3. e3 {[%clk 0:03:01]}  c5 {[%clk 0:02:49]} 4. c3 {[%clk 0:03:01]}  Nc6 {[%clk 0:02:48]} 5. Nbd2 {[%clk 0:03:01]}  g6 {[%clk 0:02:44]} 6. Be2 {[%clk 0:02:58]}  Bg7 {[%clk 0:02:43]} 7. O-O {[%clk 0:02:58]}  O-O {[%clk 0:02:43]} 8. dxc5 {[%clk 0:02:58]}  a5 {[%clk 0:02:37]} 9. Nd4 {[%clk 0:02:52]}  Nd7 {[%clk 0:02:26]} 10. Nxc6 {[%clk 0:02:42]}  bxc6 {[%clk 0:02:25]} 11. Nb3 {[%clk 0:02:40]}  a4 {[%clk 0:02:24]} 12. Nd4 {[%clk 0:02:40]}  Qc7 {[%clk 0:02:04]} 13. c4 {[%clk 0:01:45]}  e5 {[%clk 0:01:45]} 14. Nf3 {[%clk 0:01:42]}  e4 {[%clk 0:01:44]} 15. Ng5 {[%clk 0:01:29]}  h6 {[%clk 0:01:36]} 16. Nh3 {[%clk 0:00:58]}  Nxc5 {[%clk 0:01:31]} 17. cxd5 {[%clk 0:00:58]}  Bxh3 {[%clk 0:01:27]} 18. gxh3 {[%clk 0:00:57]}  Rfd8 {[%clk 0:01:23]} 19. Qc2 {[%clk 0:00:52]}  cxd5 {[%clk 0:01:22]} 20. Bd2 {[%clk 0:00:52]}  Qb6 {[%clk 0:01:18]} 21. Bc3 {[%clk 0:00:49]}  Rac8 {[%clk 0:01:00]} 22. Rac1 {[%clk 0:00:32]}  Ne6 {[%clk 0:00:57]} 23. Qxa4 {[%clk 0:00:31]}  d4 {[%clk 0:00:55]} 24. exd4 {[%clk 0:00:17]}  Nf4 {[%clk 0:00:54]} 25. Bb5 {[%clk 0:00:07]}  Nxh3+ {[%clk 0:00:53]} 26. Kg2 {[%clk 0:00:07]}  Nf4+ {[%clk 0:00:53]} 27. Kg1 {[%clk 0:00:07]}  e3 {[%clk 0:00:50]} 28. fxe3 {[%clk 0:00:06]}  Nh3+ {[%clk 0:00:50]} 29. Kg2 {[%clk 0:00:06]}  Ng5 {[%clk 0:00:43]} 30. Ba5 {[%clk 0:00:04]}  Qb7+ {[%clk 0:00:42]} 31. Bc6 {[%clk 0:00:03]}  Qxb2+ {[%clk 0:00:41]} 32. Rc2 {[%clk 0:00:04]}  Qb8 {[%clk 0:00:37]} 33. Bxd8 {[%clk 0:00:03]}  Rxd8 {[%clk 0:00:38]} 34. Bf3 {[%clk 0:00:03]}  Qb6 {[%clk 0:00:33]} 35. Qc6 {[%clk 0:00:03]}  Qb4 {[%clk 0:00:31]} 36. Qc3 {[%clk 0:00:03]}  Qd6 {[%clk 0:00:30]} 37. Qc7 {[%clk 0:00:03]}  Qf8 {[%clk 0:00:27]} 38. a4 {[%clk 0:00:03]}  Rb8 {[%clk 0:00:24]} 39. a5 {[%clk 0:00:03]}  Rb3 {[%clk 0:00:23]} 40. a6 {[%clk 0:00:04]}  Rxe3 {[%clk 0:00:21]} 41. a7 {[%clk 0:00:04]}  Ra3 {[%clk 0:00:18]} 42. Qb7 {[%clk 0:00:04]}  Nxf3 {[%clk 0:00:17]} 43. Rc8 {[%clk 0:00:04]}  Nh4+ {[%clk 0:00:16]} 44. Kh1 {[%clk 0:00:04]}  Bxd4 {[%clk 0:00:04]} 45. Rxf8+ {[%clk 0:00:04]}  Kxf8 {[%clk 0:00:05]} 46. a8=Q+ {[%clk 0:00:04]}  Rxa8 {[%clk 0:00:05]} 47. Qxa8+ {[%clk 0:00:05]} 1-0


[Site "https://www.chess.com"]

[Event "Titled Tuesday Blitz August 08 Early 2023"]
[White "Davidson, Kevin"]
[Black "Wong, Zhenyong Jayden"]
[WhiteFideId "2056810"]
[BlackFideId "5821975"]
[WhiteElo "2398"]
[BlackElo "2167"]
[Result "0-1"]
[Round "3"]
[TimeControl "180+1"]
[Date "2023.08.08"]
[WhiteClock "0:00:01"]
[BlackClock "0:01:22"]
[Board "244"]

1. e4 {[%clk 0:03:00]}  g6 {[%clk 0:02:56]} 2. d4 {[%clk 0:03:00]}  Bg7 {[%clk 0:02:57]} 3. Nc3 {[%clk 0:02:59]}  a6 {[%clk 0:02:57]} 4. f4 {[%clk 0:02:56]}  b5 {[%clk 0:02:58]} 5. Nf3 {[%clk 0:02:56]}  d6 {[%clk 0:02:58]} 6. Bd3 {[%clk 0:02:55]}  Nd7 {[%clk 0:02:58]} 7. a4 {[%clk 0:02:55]}  b4 {[%clk 0:02:58]} 8. Ne2 {[%clk 0:02:55]}  c5 {[%clk 0:02:58]} 9. c3 {[%clk 0:02:55]}  Ngf6 {[%clk 0:02:58]} 10. e5 {[%clk 0:02:55]}  Nd5 {[%clk 0:02:57]} 11. O-O {[%clk 0:02:17]}  Bb7 {[%clk 0:02:44]} 12. Ng5 {[%clk 0:02:15]}  e6 {[%clk 0:02:40]} 13. Ne4 {[%clk 0:02:14]}  Bf8 {[%clk 0:02:25]} 14. exd6 {[%clk 0:02:00]}  cxd4 {[%clk 0:02:20]} 15. cxd4 {[%clk 0:01:46]}  N7f6 {[%clk 0:02:08]} 16. Nc5 {[%clk 0:01:42]}  Bc8 {[%clk 0:02:08]} 17. a5 {[%clk 0:01:22]}  Bxd6 {[%clk 0:02:06]} 18. Qa4+ {[%clk 0:01:15]}  Kf8 {[%clk 0:02:04]} 19. Bd2 {[%clk 0:01:07]}  Kg7 {[%clk 0:01:53]} 20. Bxb4 {[%clk 0:01:04]}  Nxb4 {[%clk 0:01:53]} 21. Qxb4 {[%clk 0:01:04]}  Nd5 {[%clk 0:01:54]} 22. Qd2 {[%clk 0:01:01]}  Rb8 {[%clk 0:01:48]} 23. Nxa6 {[%clk 0:00:53]}  Bxa6 {[%clk 0:01:48]} 24. Bxa6 {[%clk 0:00:53]}  Bb4 {[%clk 0:01:49]} 25. Nc3 {[%clk 0:00:40]}  Bxa5 {[%clk 0:01:46]} 26. Bc4 {[%clk 0:00:35]}  Rxb2 {[%clk 0:01:41]} 27. Qxb2 {[%clk 0:00:31]}  Bxc3 {[%clk 0:01:41]} 28. Qe2 {[%clk 0:00:15]}  Bxd4+ {[%clk 0:01:39]} 29. Kh1 {[%clk 0:00:14]}  Bxa1 {[%clk 0:01:39]} 30. Rxa1 {[%clk 0:00:14]}  Nxf4 {[%clk 0:01:37]} 31. Qf2 {[%clk 0:00:09]}  Nd5 {[%clk 0:01:32]} 32. Rf1 {[%clk 0:00:07]}  Rf8 {[%clk 0:01:32]} 33. Rd1 {[%clk 0:00:04]}  Qf6 {[%clk 0:01:31]} 34. Qd2 {[%clk 0:00:03]}  Nf4 {[%clk 0:01:27]} 35. Rf1 {[%clk 0:00:02]}  e5 {[%clk 0:01:22]} 36. g3 {[%clk 0:00:02]}  Qc6+ {[%clk 0:01:21]} 37. Kg1 {[%clk 0:00:01]}  Nh3# {[%clk 0:01:22]} 0-1


[Site "https://www.chess.com"]

[Event "Titled Tuesday Blitz August 08 Early 2023"]
[White "Mirzanurov, Bulat"]
[Black "Herman, Daniel"]
[WhiteFideId "4184521"]
[BlackFideId "30935008"]
[WhiteElo "2165"]
[BlackElo "2396"]
[Result "0-1"]
[Round "3"]
[TimeControl "180+1"]
[Date "2023.08.08"]
[WhiteClock "0:00:00"]
[BlackClock "0:00:17"]
[Board "245"]

1. e4 {[%clk 0:03:00]}  g6 {[%clk 0:02:59]} 2. d4 {[%clk 0:02:53]}  Bg7 {[%clk 0:02:59]} 3. Nc3 {[%clk 0:02:52]}  d6 {[%clk 0:03:00]} 4. f3 {[%clk 0:02:50]}  c6 {[%clk 0:02:57]} 5. Be3 {[%clk 0:02:51]}  b5 {[%clk 0:02:57]} 6. Qd2 {[%clk 0:02:50]}  b4 {[%clk 0:02:53]} 7. Nd1 {[%clk 0:02:48]}  a5 {[%clk 0:02:49]} 8. Nf2 {[%clk 0:02:46]}  c5 {[%clk 0:02:44]} 9. Ne2 {[%clk 0:02:43]}  cxd4 {[%clk 0:02:39]} 10. Nxd4 {[%clk 0:02:41]}  Bd7 {[%clk 0:02:35]} 11. Bc4 {[%clk 0:02:37]}  Nc6 {[%clk 0:02:32]} 12. O-O {[%clk 0:02:20]}  Nf6 {[%clk 0:02:29]} 13. a3 {[%clk 0:02:07]}  O-O {[%clk 0:02:26]} 14. Nxc6 {[%clk 0:02:03]}  Bxc6 {[%clk 0:02:26]} 15. axb4 {[%clk 0:02:02]}  axb4 {[%clk 0:02:26]} 16. Qxb4 {[%clk 0:02:01]}  Rb8 {[%clk 0:02:25]} 17. Qa3 {[%clk 0:01:50]}  d5 {[%clk 0:02:24]} 18. Bd3 {[%clk 0:01:39]}  dxe4 {[%clk 0:02:17]} 19. fxe4 {[%clk 0:01:39]}  Nd7 {[%clk 0:02:06]} 20. Qa6 {[%clk 0:01:25]}  Bb7 {[%clk 0:02:00]} 21. Qa5 {[%clk 0:01:18]}  Bxb2 {[%clk 0:01:53]} 22. Qxd8 {[%clk 0:01:11]}  Rfxd8 {[%clk 0:01:54]} 23. Rab1 {[%clk 0:01:10]}  Bc6 {[%clk 0:01:45]} 24. Ng4 {[%clk 0:01:04]}  f6 {[%clk 0:01:02]} 25. Bf4 {[%clk 0:00:41]}  Bd4+ {[%clk 0:01:01]} 26. Kh1 {[%clk 0:00:39]}  Rxb1 {[%clk 0:01:02]} 27. Rxb1 {[%clk 0:00:40]}  Nc5 {[%clk 0:01:00]} 28. e5 {[%clk 0:00:33]}  Nxd3 {[%clk 0:00:49]} 29. cxd3 {[%clk 0:00:31]}  f5 {[%clk 0:00:49]} 30. Ne3 {[%clk 0:00:30]}  Ra8 {[%clk 0:00:45]} 31. Nc4 {[%clk 0:00:22]}  Ra2 {[%clk 0:00:42]} 32. Nd2 {[%clk 0:00:22]}  Kg7 {[%clk 0:00:30]} 33. Nf3 {[%clk 0:00:20]}  Ba7 {[%clk 0:00:26]} 34. Rc1 {[%clk 0:00:18]}  Bd5 {[%clk 0:00:23]} 35. h3 {[%clk 0:00:17]}  h6 {[%clk 0:00:22]} 36. Rc7 {[%clk 0:00:13]}  Ra1+ {[%clk 0:00:21]} 37. Kh2 {[%clk 0:00:13]}  Ra2 {[%clk 0:00:20]} 38. Rxe7+ {[%clk 0:00:12]}  Kf8 {[%clk 0:00:20]} 39. Rxa7 {[%clk 0:00:08]}  Rxa7 {[%clk 0:00:19]} 40. Bxh6+ {[%clk 0:00:08]}  Ke8 {[%clk 0:00:18]} 41. Nh4 {[%clk 0:00:06]}  Kf7 {[%clk 0:00:17]} 42. Bg5 {[%clk 0:00:04]}  Ra2 {[%clk 0:00:17]} 43. d4 {[%clk 0:00:04]}  Ra3 {[%clk 0:00:16]} 44. Bf6 {[%clk 0:00:04]}  Rd3 {[%clk 0:00:16]} 45. Nf3 {[%clk 0:00:03]}  Bxf3 {[%clk 0:00:16]} 46. gxf3 {[%clk 0:00:04]}  Rxd4 {[%clk 0:00:17]} 47. Kg3 {[%clk 0:00:04]}  Ke6 {[%clk 0:00:17]} 48. f4 {[%clk 0:00:04]}  Rd3+ {[%clk 0:00:18]} 49. Kh4 {[%clk 0:00:04]}  Rd2 {[%clk 0:00:18]} 50. Kg5 {[%clk 0:00:03]}  Rg2+ {[%clk 0:00:18]} 51. Kh6 {[%clk 0:00:04]}  Rg3 {[%clk 0:00:19]} 52. Kg7 {[%clk 0:00:03]}  Rxh3 {[%clk 0:00:19]} 53. Kxg6 {[%clk 0:00:04]}  Rg3+ {[%clk 0:00:19]} 54. Bg5 {[%clk 0:00:04]}  Rg4 {[%clk 0:00:20]} 55. Kh6 {[%clk 0:00:05]}  Rg1 {[%clk 0:00:19]} 56. Kg6 {[%clk 0:00:05]}  Ra1 {[%clk 0:00:20]} 57. Kh6 {[%clk 0:00:06]}  Ra8 {[%clk 0:00:20]} 58. Kg6 {[%clk 0:00:06]}  Rg8+ {[%clk 0:00:20]} 59. Kh5 {[%clk 0:00:07]}  Kf7 {[%clk 0:00:21]} 60. Kh4 {[%clk 0:00:07]}  Kg6 {[%clk 0:00:21]} 61. Kg3 {[%clk 0:00:08]}  Ra8 {[%clk 0:00:21]} 62. Kf3 {[%clk 0:00:08]}  Ra3+ {[%clk 0:00:21]} 63. Ke2 {[%clk 0:00:09]}  Kf7 {[%clk 0:00:22]} 64. Kd2 {[%clk 0:00:09]}  Ke6 {[%clk 0:00:22]} 65. Kc2 {[%clk 0:00:09]}  Kd5 {[%clk 0:00:23]} 66. Kb2 {[%clk 0:00:10]}  Rf3 {[%clk 0:00:23]} 67. Kc2 {[%clk 0:00:10]}  Kd4 {[%clk 0:00:23]} 68. Kd2 {[%clk 0:00:10]}  Rf2+ {[%clk 0:00:23]} 69. Ke1 {[%clk 0:00:11]}  Ra2 {[%clk 0:00:23]} 70. Kf1 {[%clk 0:00:08]}  Ke3 {[%clk 0:00:23]} 71. e6 {[%clk 0:00:07]}  Kf3 {[%clk 0:00:23]} 72. Kg1 {[%clk 0:00:06]}  Re2 {[%clk 0:00:23]} 73. e7 {[%clk 0:00:06]}  Rg2+ {[%clk 0:00:23]} 74. Kf1 {[%clk 0:00:06]}  Re2 {[%clk 0:00:24]} 75. Kg1 {[%clk 0:00:07]}  Re4 {[%clk 0:00:24]} 76. Kf1 {[%clk 0:00:06]}  Ke3 {[%clk 0:00:24]} 77. Kg2 {[%clk 0:00:06]}  Kd4 {[%clk 0:00:22]} 78. Kh3 {[%clk 0:00:07]}  Kd5 {[%clk 0:00:22]} 79. Kh4 {[%clk 0:00:07]}  Kd6 {[%clk 0:00:22]} 80. Kh5 {[%clk 0:00:08]}  Re6 {[%clk 0:00:21]} 81. Bh4 {[%clk 0:00:06]}  Kd5 {[%clk 0:00:21]} 82. Bg5 {[%clk 0:00:06]}  Ke4 {[%clk 0:00:22]} 83. Kh4 {[%clk 0:00:05]}  Kf3 {[%clk 0:00:21]} 84. Kh5 {[%clk 0:00:05]}  Kg3 {[%clk 0:00:20]} 85. Bf6 {[%clk 0:00:03]}  Kxf4 {[%clk 0:00:20]} 86. Bg5+ {[%clk 0:00:03]}  Kg3 {[%clk 0:00:20]} 87. Bf6 {[%clk 0:00:03]}  f4 {[%clk 0:00:20]} 88. Kg6 {[%clk 0:00:04]}  f3 {[%clk 0:00:20]} 89. Kf7 {[%clk 0:00:04]}  Rxe7+ {[%clk 0:00:15]} 90. Bxe7 {[%clk 0:00:02]}  f2 {[%clk 0:00:16]} 91. Bd6+ {[%clk 0:00:03]}  Kg2 {[%clk 0:00:16]} 92. Ke7 {[%clk 0:00:00]}  f1=Q {[%clk 0:00:17]} 0-1


[Site "https://www.chess.com"]